[Event "Live Chess"]
[Site "Chess.com"]
[Date "2023.05.20"]
[Round "-"]
[White "DaveL5678"]
[Black "McSlash1"]
[Result "0-1"]
[WhiteElo "1023"]
[BlackElo "1996"]
[TimeControl "300"]
[EndTime "15:49:41 PDT"]
[Termination "McSlash1 won on time"]

1. e4 {[%clk 0:04:57.7]} 1... c5 {[%clk 0:04:59]} 2. b3 {[%clk 0:04:55.1]} 2...
Nc6 {[%clk 0:04:57.3]} 3. Bb2 {[%clk 0:04:52.7]} 3... Nf6 {[%clk 0:04:56.3]} 4.
Nc3 {[%clk 0:04:46.7]} 4... g6 {[%clk 0:04:54.9]} 5. f3 {[%clk 0:04:43.1]} 5...
Bg7 {[%clk 0:04:54.4]} 6. Bb5 {[%clk 0:04:40.5]} 6... O-O {[%clk 0:04:54.3]} 7.
Bxc6 {[%clk 0:04:38.7]} 7... bxc6 {[%clk 0:04:54.2]} 8. Nge2 {[%clk 0:04:37]}
8... d5 {[%clk 0:04:53.7]} 9. Na4 {[%clk 0:04:30.3]} 9... c4 {[%clk 0:04:46.9]}
10. O-O {[%clk 0:04:16.9]} 10... Nd7 {[%clk 0:04:38.7]} 11. Bxg7 {[%clk
0:04:12.4]} 11... Kxg7 {[%clk 0:04:38.6]} 12. Nf4 {[%clk 0:04:07]} 12... Nb6
{[%clk 0:04:35.2]} 13. Nc3 {[%clk 0:04:02]} 13... d4 {[%clk 0:04:33.1]} 14. Nce2
{[%clk 0:03:52.2]} 14... cxb3 {[%clk 0:04:32.4]} 15. cxb3 {[%clk 0:03:50]} 15...
e5 {[%clk 0:04:32.3]} 16. Nd3 {[%clk 0:03:46.8]} 16... Ba6 {[%clk 0:04:31.7]}
17. Nxe5 {[%clk 0:03:38.5]} 17... Qd6 {[%clk 0:04:24.8]} 18. f4 {[%clk
0:03:18.8]} 18... f6 {[%clk 0:04:21.9]} 19. Nf3 {[%clk 0:03:04]} 19... Nd7
{[%clk 0:04:15.4]} 20. Rf2 {[%clk 0:02:53.9]} 20... c5 {[%clk 0:04:12.1]} 21. e5
{[%clk 0:02:49.3]} 21... fxe5 {[%clk 0:04:09.9]} 22. fxe5 {[%clk 0:02:46.7]}
22... Nxe5 {[%clk 0:04:09.8]} 23. Ng5 {[%clk 0:02:28.6]} 23... Rxf2 {[%clk
0:04:06.7]} 24. Kxf2 {[%clk 0:02:27.7]} 24... Rf8+ {[%clk 0:04:05.4]} 25. Kg1
{[%clk 0:02:25.1]} 25... Qf6 {[%clk 0:04:03.3]} 26. Ne4 {[%clk 0:02:19.5]} 26...
Qf5 {[%clk 0:03:57.5]} 27. N2g3 {[%clk 0:02:07.3]} 27... Qf4 {[%clk 0:03:54.7]}
28. d3 {[%clk 0:01:58.2]} 28... Ng4 {[%clk 0:03:48.6]} 29. Qe2 {[%clk
0:01:47.4]} 29... Ne3 {[%clk 0:03:46.8]} 30. Re1 {[%clk 0:01:22.9]} 30... h5
{[%clk 0:03:44.1]} 31. a3 {[%clk 0:01:06.1]} 31... h4 {[%clk 0:03:41]} 32. Nh1
{[%clk 0:00:53.3]} 32... Bb7 {[%clk 0:03:32.9]} 33. Nhf2 {[%clk 0:00:45.7]}
33... a5 {[%clk 0:03:25.7]} 34. Qf3 {[%clk 0:00:35.2]} 34... Qxf3 {[%clk
0:03:20.9]} 35. gxf3 {[%clk 0:00:34.1]} 35... Rxf3 {[%clk 0:03:20.8]} 36. Ng5
{[%clk 0:00:24.5]} 36... Rf5 {[%clk 0:03:13.1]} 37. Nfh3 {[%clk 0:00:18.4]}
37... Ba6 {[%clk 0:03:03.6]} 38. Ne6+ {[%clk 0:00:07.4]} 38... Kf6 {[%clk
0:03:01.1]} 39. Nef4 {[%clk 0:00:01.1]} 39... g5 {[%clk 0:02:59.4]} 0-1

[Event "Live Chess"]
[Site "Chess.com"]
[Date "2023.05.20"]
[Round "-"]
[White "ShanthamGrarks"]
[Black "EdenHazard8"]
[Result "1-0"]
[WhiteElo "1977"]
[BlackElo "2063"]
[TimeControl "300"]
[EndTime "15:49:44 PDT"]
[Termination "ShanthamGrarks won by resignation"]

1. d4 {[%clk 0:04:57]} 1... Nf6 {[%clk 0:04:58]} 2. Nc3 {[%clk 0:04:55.2]} 2...
g6 {[%clk 0:04:57.9]} 3. e4 {[%clk 0:04:54.3]} 3... Bg7 {[%clk 0:04:57.3]} 4. e5
{[%clk 0:04:52.4]} 4... Ng8 {[%clk 0:04:55.6]} 5. f4 {[%clk 0:04:52]} 5... d6
{[%clk 0:04:55]} 6. Nf3 {[%clk 0:04:51.3]} 6... Bg4 {[%clk 0:04:53.2]} 7. Bc4
{[%clk 0:04:49.7]} 7... e6 {[%clk 0:04:51.3]} 8. O-O {[%clk 0:04:47.4]} 8... d5
{[%clk 0:04:50]} 9. Bd3 {[%clk 0:04:45.6]} 9... Bxf3 {[%clk 0:04:48.5]} 10. Qxf3
{[%clk 0:04:43.7]} 10... Ne7 {[%clk 0:04:45.5]} 11. Be3 {[%clk 0:04:40.9]} 11...
c5 {[%clk 0:04:43.8]} 12. Nb5 {[%clk 0:04:33.2]} 12... O-O {[%clk 0:04:41]} 13.
dxc5 {[%clk 0:04:31.6]} 13... Nd7 {[%clk 0:04:36.3]} 14. Nd6 {[%clk 0:04:29.5]}
14... Nc8 {[%clk 0:04:34.8]} 15. Nxb7 {[%clk 0:04:21.5]} 15... Qc7 {[%clk
0:04:33]} 16. Nd6 {[%clk 0:04:19.8]} 16... Nxc5 {[%clk 0:04:32]} 17. Nxc8 {[%clk
0:03:46.5]} 17... Raxc8 {[%clk 0:04:29.3]} 18. Bxc5 {[%clk 0:03:43.1]} 18...
Qxc5+ {[%clk 0:04:29.2]} 19. Kh1 {[%clk 0:03:40.8]} 19... Rfd8 {[%clk
0:04:26.4]} 20. a3 {[%clk 0:03:34.8]} 20... Qb6 {[%clk 0:04:24.6]} 21. b3 {[%clk
0:03:33.6]} 21... Rc3 {[%clk 0:04:12.7]} 22. Qf2 {[%clk 0:03:28.4]} 22... Qxf2
{[%clk 0:04:02.3]} 23. Rxf2 {[%clk 0:03:27.2]} 23... Rdc8 {[%clk 0:04:02.2]} 24.
g3 {[%clk 0:03:25.1]} 24... Bf8 {[%clk 0:04:00.7]} 25. Re2 {[%clk 0:03:11.4]}
25... Bc5 {[%clk 0:03:57.8]} 26. a4 {[%clk 0:03:04.7]} 26... Bd4 {[%clk
0:03:54.7]} 27. Rb1 {[%clk 0:03:02.2]} 27... a5 {[%clk 0:03:48.5]} 28. b4 {[%clk
0:02:56.2]} 28... axb4 {[%clk 0:03:45.7]} 29. Rxb4 {[%clk 0:02:54.8]} 29... Bc5
{[%clk 0:03:45.2]} 30. Rb3 {[%clk 0:02:46.5]} 30... Rxb3 {[%clk 0:03:41.4]} 31.
cxb3 {[%clk 0:02:45.8]} 31... Bb4 {[%clk 0:03:41]} 32. Rc2 {[%clk 0:02:40.3]}
32... Rxc2 {[%clk 0:03:35.2]} 33. Bxc2 {[%clk 0:02:40.2]} 33... Kf8 {[%clk
0:03:33.3]} 34. Kg2 {[%clk 0:02:39.8]} 34... Ke7 {[%clk 0:03:31.4]} 35. Kf3
{[%clk 0:02:39.7]} 35... f6 {[%clk 0:03:28.2]} 36. exf6+ {[%clk 0:02:35]} 36...
Kxf6 {[%clk 0:03:28.1]} 37. Ke3 {[%clk 0:02:34]} 37... e5 {[%clk 0:03:26]} 38.
fxe5+ {[%clk 0:02:26.8]} 38... Kxe5 {[%clk 0:03:25.9]} 39. Bd3 {[%clk
0:02:22.2]} 39... Ba5 {[%clk 0:03:10.9]} 40. h4 {[%clk 0:02:15.3]} 40... Be1
{[%clk 0:03:06.8]} 41. Kf3 {[%clk 0:02:12.7]} 41... Kd4 {[%clk 0:03:04.6]} 42.
Bc2 {[%clk 0:02:10.8]} 42... Kc3 {[%clk 0:03:00.4]} 43. a5 {[%clk 0:01:50.1]}
43... Kxc2 {[%clk 0:02:30.1]} 44. a6 {[%clk 0:01:47.7]} 44... d4 {[%clk
0:02:30]} 45. a7 {[%clk 0:01:42.6]} 45... d3 {[%clk 0:02:29.9]} 46. a8=Q {[%clk
0:01:41.1]} 46... d2 {[%clk 0:02:29.8]} 47. Qe4+ {[%clk 0:01:38.2]} 47... Kb2
{[%clk 0:02:27.9]} 48. Qe2 {[%clk 0:01:31.6]} 48... Kc1 {[%clk 0:02:25.3]} 49.
Qc4+ {[%clk 0:01:29.7]} 49... Kb2 {[%clk 0:02:23.7]} 50. Qd4+ {[%clk 0:01:24.2]}
50... Kc1 {[%clk 0:02:21.7]} 51. Ke2 {[%clk 0:01:23.3]} 1-0

[Event "Live Chess"]
[Site "Chess.com"]
[Date "2023.05.20"]
[Round "-"]
[White "Tushinskiy"]
[Black "Biranidun"]
[Result "1-0"]
[WhiteElo "2179"]
[BlackElo "2683"]
[TimeControl "300"]
[EndTime "15:49:50 PDT"]
[Termination "Tushinskiy won on time"]

1. d4 {[%clk 0:04:56.8]} 1... Nf6 {[%clk 0:04:59.2]} 2. c3 {[%clk 0:04:56.7]}
2... g6 {[%clk 0:04:58.5]} 3. Nf3 {[%clk 0:04:53]} 3... Bg7 {[%clk 0:04:58.1]}
4. Bg5 {[%clk 0:04:52.4]} 4... O-O {[%clk 0:04:56.8]} 5. Nbd2 {[%clk 0:04:49.1]}
5... d6 {[%clk 0:04:56.5]} 6. e4 {[%clk 0:04:48.1]} 6... c5 {[%clk 0:04:56.1]}
7. d5 {[%clk 0:04:47]} 7... e6 {[%clk 0:04:54]} 8. dxe6 {[%clk 0:04:46.1]} 8...
Bxe6 {[%clk 0:04:53.1]} 9. Bd3 {[%clk 0:04:45.3]} 9... Nc6 {[%clk 0:04:52]} 10.
Qe2 {[%clk 0:04:44.3]} 10... h6 {[%clk 0:04:50.2]} 11. Bh4 {[%clk 0:04:43.3]}
11... Qc7 {[%clk 0:04:47.5]} 12. O-O {[%clk 0:04:40.9]} 12... Nh5 {[%clk
0:04:46.6]} 13. Bg3 {[%clk 0:04:39.1]} 13... Rad8 {[%clk 0:04:44.1]} 14. Rad1
{[%clk 0:04:37.7]} 14... Rfe8 {[%clk 0:04:42.7]} 15. Nc4 {[%clk 0:04:33.1]}
15... Nxg3 {[%clk 0:04:34.1]} 16. hxg3 {[%clk 0:04:27.9]} 16... d5 {[%clk
0:04:34]} 17. exd5 {[%clk 0:04:24.6]} 17... Bxd5 {[%clk 0:04:32.7]} 18. Qc2
{[%clk 0:04:23.7]} 18... a6 {[%clk 0:04:23.5]} 19. Ne3 {[%clk 0:04:22]} 19...
Be6 {[%clk 0:04:20.2]} 20. Rfe1 {[%clk 0:04:17.9]} 20... b5 {[%clk 0:04:19.3]}
21. Be4 {[%clk 0:04:07.2]} 21... Ne7 {[%clk 0:04:17.1]} 22. Qb1 {[%clk
0:03:59.6]} 22... Qa5 {[%clk 0:04:14.6]} 23. a3 {[%clk 0:03:57.6]} 23... Bb3
{[%clk 0:04:13.1]} 24. Bc2 {[%clk 0:03:55.9]} 24... Be6 {[%clk 0:04:11.1]} 25.
Rxd8 {[%clk 0:03:38.2]} 25... Rxd8 {[%clk 0:04:11]} 26. Rd1 {[%clk 0:03:37.7]}
26... Rxd1+ {[%clk 0:04:01.5]} 27. Qxd1 {[%clk 0:03:37.6]} 27... Bf6 {[%clk
0:03:56.2]} 28. Qd6 {[%clk 0:03:32.8]} 28... b4 {[%clk 0:03:47]} 29. axb4 {[%clk
0:03:23.5]} 29... cxb4 {[%clk 0:03:46.1]} 30. Ng4 {[%clk 0:03:03.2]} 30... Bxg4
{[%clk 0:02:01.2]} 31. Qxf6 {[%clk 0:03:00.6]} 31... Nd5 {[%clk 0:02:00.7]} 32.
Qd4 {[%clk 0:02:47.9]} 32... Bxf3 {[%clk 0:01:59.2]} 33. gxf3 {[%clk 0:02:47.3]}
33... bxc3 {[%clk 0:01:58.5]} 34. Bb3 {[%clk 0:02:37.5]} 34... cxb2 {[%clk
0:01:28.9]} 35. Qxb2 {[%clk 0:02:31.6]} 35... Nc3 {[%clk 0:00:53.2]} 36. Bc4
{[%clk 0:02:02.8]} 36... Qe5 {[%clk 0:00:13.4]} 37. Kg2 {[%clk 0:01:55.7]} 37...
a5 {[%clk 0:00:11.7]} 38. Qb6 {[%clk 0:01:47.2]} 38... Kg7 {[%clk 0:00:11]} 39.
Qa7 {[%clk 0:01:40.9]} 39... Nd5 {[%clk 0:00:05.1]} 40. Kg1 {[%clk 0:01:29.1]}
40... Qa1+ {[%clk 0:00:03.7]} 41. Kh2 {[%clk 0:01:22.5]} 41... Qe5 {[%clk
0:00:02.7]} 42. Qxa5 {[%clk 0:01:13.4]} 42... Qh5+ {[%clk 0:00:02.1]} 43. Kg1
{[%clk 0:01:12.2]} 43... Nf6 {[%clk 0:00:01.9]} 44. Qa7 {[%clk 0:01:05.6]} 44...
Qxf3 {[%clk 0:00:01]} 45. Qxf7+ {[%clk 0:01:03.3]} 45... Kh8 {[%clk 0:00:00.9]}
46. Qf8+ {[%clk 0:00:56.4]} 46... Kh7 {[%clk 0:00:00.8]} 47. Bg8+ {[%clk
0:00:55.5]} 47... Kh8 {[%clk 0:00:00.4]} 48. Bd5+ {[%clk 0:00:54.2]} 48... Kh7
{[%clk 0:00:00.3]} 49. Bxf3 {[%clk 0:00:53.2]} 1-0

[Event "Live Chess"]
[Site "Chess.com"]
[Date "2023.05.20"]
[Round "-"]
[White "Conradical12"]
[Black "AbilifyXL"]
[Result "0-1"]
[WhiteElo "1614"]
[BlackElo "1970"]
[TimeControl "300"]
[EndTime "15:49:50 PDT"]
[Termination "AbilifyXL won by resignation"]

1. e4 {[%clk 0:04:56.4]} 1... d5 {[%clk 0:04:59.9]} 2. exd5 {[%clk 0:04:54.6]}
2... Qxd5 {[%clk 0:04:56.1]} 3. Nf3 {[%clk 0:04:54.5]} 3... c6 {[%clk 0:04:55]}
4. Nc3 {[%clk 0:04:52.6]} 4... Qa5 {[%clk 0:04:53.7]} 5. d3 {[%clk 0:04:50.9]}
5... Nf6 {[%clk 0:04:52.7]} 6. Bd2 {[%clk 0:04:50.3]} 6... Qc7 {[%clk
0:04:51.7]} 7. Be2 {[%clk 0:04:49.5]} 7... Bg4 {[%clk 0:04:50.8]} 8. O-O {[%clk
0:04:48.9]} 8... e6 {[%clk 0:04:50]} 9. Re1 {[%clk 0:04:48.5]} 9... Nbd7 {[%clk
0:04:48.1]} 10. Bg5 {[%clk 0:04:46.6]} 10... Be7 {[%clk 0:04:46.4]} 11. h3
{[%clk 0:04:43.7]} 11... Bh5 {[%clk 0:04:45.2]} 12. Qd2 {[%clk 0:04:40.9]} 12...
O-O {[%clk 0:04:43.5]} 13. Rad1 {[%clk 0:04:38.5]} 13... Rad8 {[%clk 0:04:41.4]}
14. Bf4 {[%clk 0:04:33.8]} 14... Bd6 {[%clk 0:04:39.9]} 15. Bxd6 {[%clk
0:04:30.3]} 15... Qxd6 {[%clk 0:04:39.8]} 16. Ne4 {[%clk 0:04:29.2]} 16... Qc7
{[%clk 0:04:38.8]} 17. Nfg5 {[%clk 0:04:26.3]} 17... Bg6 {[%clk 0:04:36.1]} 18.
Bg4 {[%clk 0:04:21.9]} 18... Rfe8 {[%clk 0:04:21.9]} 19. Qe2 {[%clk 0:04:10.3]}
19... Nxg4 {[%clk 0:04:12.7]} 20. Qxg4 {[%clk 0:04:06.7]} 20... f5 {[%clk
0:04:09.8]} 21. Qf3 {[%clk 0:04:01.7]} 21... fxe4 {[%clk 0:04:06.5]} 22. Rxe4
{[%clk 0:03:59.2]} 22... Rf8 {[%clk 0:03:52.5]} 23. Qe2 {[%clk 0:03:55.3]} 23...
Bxe4 {[%clk 0:03:46.2]} 24. Nxe4 {[%clk 0:03:53.2]} 24... Rde8 {[%clk
0:03:43.4]} 25. Re1 {[%clk 0:03:48.8]} 25... e5 {[%clk 0:03:42.4]} 26. Ng5
{[%clk 0:03:43]} 26... h6 {[%clk 0:03:41.2]} 0-1

[Event "Live Chess"]
[Site "Chess.com"]
[Date "2023.05.20"]
[Round "-"]
[White "chessfiction"]
[Black "weibs440"]
[Result "1-0"]
[WhiteElo "2350"]
[BlackElo "957"]
[TimeControl "300"]
[EndTime "15:49:52 PDT"]
[Termination "chessfiction won by resignation"]

1. e4 {[%clk 0:04:59.5]} 1... d6 {[%clk 0:04:59]} 2. d4 {[%clk 0:04:58]} 2...
Nf6 {[%clk 0:04:58.5]} 3. Nc3 {[%clk 0:04:57.6]} 3... Nbd7 {[%clk 0:04:57.1]} 4.
f4 {[%clk 0:04:57.1]} 4... e5 {[%clk 0:04:56.2]} 5. Nf3 {[%clk 0:04:57]} 5...
exd4 {[%clk 0:04:53.8]} 6. Qxd4 {[%clk 0:04:54.1]} 6... c6 {[%clk 0:04:48.3]} 7.
Bc4 {[%clk 0:04:53.5]} 7... d5 {[%clk 0:04:42.5]} 8. exd5 {[%clk 0:04:52]} 8...
Bc5 {[%clk 0:04:41.1]} 9. Qd3 {[%clk 0:04:46.6]} 9... O-O {[%clk 0:04:39.5]} 10.
dxc6 {[%clk 0:04:45.3]} 10... Re8+ {[%clk 0:04:32]} 11. Kf1 {[%clk 0:04:35.2]}
11... bxc6 {[%clk 0:04:28.3]} 12. Ng5 {[%clk 0:04:31.4]} 12... Qe7 {[%clk
0:03:51.5]} 13. Bxf7+ {[%clk 0:04:22.5]} 13... Kf8 {[%clk 0:03:41.9]} 14. Bxe8
{[%clk 0:04:19]} 14... Qxe8 {[%clk 0:03:41.8]} 15. Bd2 {[%clk 0:04:15.9]} 15...
Qd8 {[%clk 0:03:26.5]} 16. Ne6+ {[%clk 0:04:12.6]} 1-0

[Event "Live Chess"]
[Site "Chess.com"]
[Date "2023.05.20"]
[Round "-"]
[White "educatedlad"]
[Black "Hussamalhaidar"]
[Result "1-0"]
[WhiteElo "1629"]
[BlackElo "1029"]
[TimeControl "300"]
[EndTime "15:49:54 PDT"]
[Termination "educatedlad won by checkmate"]

1. e4 {[%clk 0:04:58.4]} 1... b6 {[%clk 0:04:55.2]} 2. d4 {[%clk 0:04:57.2]}
2... Bb7 {[%clk 0:04:54.3]} 3. Bd3 {[%clk 0:04:54.3]} 3... Nf6 {[%clk
0:04:49.4]} 4. Qe2 {[%clk 0:04:53.4]} 4... c5 {[%clk 0:04:45.4]} 5. d5 {[%clk
0:04:51.3]} 5... d6 {[%clk 0:04:39.9]} 6. c4 {[%clk 0:04:43.9]} 6... Bc8 {[%clk
0:04:33.3]} 7. Nc3 {[%clk 0:04:41.6]} 7... e6 {[%clk 0:04:30.2]} 8. Bg5 {[%clk
0:04:38.8]} 8... h6 {[%clk 0:04:23.8]} 9. Bh4 {[%clk 0:04:35.4]} 9... g5 {[%clk
0:04:20.6]} 10. Bg3 {[%clk 0:04:33.9]} 10... e5 {[%clk 0:04:17.6]} 11. h4 {[%clk
0:04:27.4]} 11... Bg7 {[%clk 0:04:11.7]} 12. hxg5 {[%clk 0:04:11.4]} 12... hxg5
{[%clk 0:04:03.9]} 13. Rxh8+ {[%clk 0:04:11.3]} 13... Bxh8 {[%clk 0:04:01.5]}
14. O-O-O {[%clk 0:04:08.8]} 14... Bg7 {[%clk 0:03:39]} 15. Nf3 {[%clk
0:04:04.5]} 15... Bg4 {[%clk 0:03:35.7]} 16. Qc2 {[%clk 0:03:46.9]} 16... Na6
{[%clk 0:03:28.7]} 17. Qa4+ {[%clk 0:03:42.1]} 17... Qd7 {[%clk 0:03:13.6]} 18.
Qxa6 {[%clk 0:03:40.3]} 18... Nh5 {[%clk 0:03:03.4]} 19. Qb5 {[%clk 0:03:29.7]}
19... Qxb5 {[%clk 0:02:57.3]} 20. Nxb5 {[%clk 0:03:28.2]} 20... Bh6 {[%clk
0:02:56.7]} 21. Nxd6+ {[%clk 0:03:26.6]} 21... Ke7 {[%clk 0:02:46.6]} 22. Nf5+
{[%clk 0:03:12.1]} 22... Bxf5 {[%clk 0:02:42.3]} 23. exf5 {[%clk 0:03:10.6]}
23... Nxg3 {[%clk 0:02:39.8]} 24. fxg3 {[%clk 0:03:04.8]} 24... g4+ {[%clk
0:02:38.5]} 25. Nd2 {[%clk 0:03:02.4]} 25... f6 {[%clk 0:02:36.1]} 26. Kb1
{[%clk 0:02:59.1]} 26... Kd6 {[%clk 0:02:33.3]} 27. Ne4+ {[%clk 0:02:56.6]}
27... Ke7 {[%clk 0:02:30.2]} 28. d6+ {[%clk 0:02:55.4]} 28... Kf7 {[%clk
0:02:27]} 29. d7 {[%clk 0:02:50.8]} 29... Rd8 {[%clk 0:02:25.3]} 30. Be2 {[%clk
0:02:48.5]} 30... Ke7 {[%clk 0:02:20.4]} 31. Bxg4 {[%clk 0:02:46.3]} 31... Rxd7
{[%clk 0:02:18.2]} 32. Rxd7+ {[%clk 0:02:45.7]} 32... Kxd7 {[%clk 0:02:17]} 33.
Nxf6+ {[%clk 0:02:45.3]} 33... Ke7 {[%clk 0:02:14.9]} 34. Nd5+ {[%clk
0:02:43.5]} 34... Kd6 {[%clk 0:02:13.1]} 35. f6 {[%clk 0:02:42.4]} 35... Bf8
{[%clk 0:02:08.7]} 36. Bf5 {[%clk 0:02:36.4]} 36... a6 {[%clk 0:02:06]} 37. g4
{[%clk 0:02:35.6]} 37... b5 {[%clk 0:02:05]} 38. b3 {[%clk 0:02:33.2]} 38... a5
{[%clk 0:02:01.8]} 39. g5 {[%clk 0:02:31.2]} 39... a4 {[%clk 0:02:00.6]} 40. g6
{[%clk 0:02:29.7]} 40... axb3 {[%clk 0:01:57.5]} 41. axb3 {[%clk 0:02:29.6]}
41... bxc4 {[%clk 0:01:56.4]} 42. bxc4 {[%clk 0:02:28.6]} 42... e4 {[%clk
0:01:47.5]} 43. g7 {[%clk 0:02:25.9]} 43... Bxg7 {[%clk 0:01:36.3]} 44. fxg7
{[%clk 0:02:24.4]} 44... e3 {[%clk 0:01:34.1]} 45. g8=Q {[%clk 0:02:24.3]} 45...
e2 {[%clk 0:01:31.8]} 46. Qe6# {[%clk 0:02:23.6]} 1-0

[Event "Live Chess"]
[Site "Chess.com"]
[Date "2023.05.20"]
[Round "-"]
[White "risinghelios"]
[Black "elvenstar"]
[Result "0-1"]
[WhiteElo "1894"]
[BlackElo "1577"]
[TimeControl "300"]
[EndTime "15:49:55 PDT"]
[Termination "elvenstar won by resignation"]

1. e4 {[%clk 0:04:59.3]} 1... d5 {[%clk 0:04:57.9]} 2. exd5 {[%clk 0:04:58]}
2... Nf6 {[%clk 0:04:56.4]} 3. Nc3 {[%clk 0:04:57.4]} 3... e6 {[%clk 0:04:55.5]}
4. dxe6 {[%clk 0:04:56.3]} 4... Bxe6 {[%clk 0:04:54.4]} 5. Nf3 {[%clk
0:04:55.7]} 5... Bd6 {[%clk 0:04:53.2]} 6. Be2 {[%clk 0:04:54.7]} 6... O-O
{[%clk 0:04:51.9]} 7. O-O {[%clk 0:04:52.2]} 7... c6 {[%clk 0:04:50.8]} 8. d4
{[%clk 0:04:51.3]} 8... Nbd7 {[%clk 0:04:46.8]} 9. Be3 {[%clk 0:04:50.5]} 9...
Re8 {[%clk 0:04:44.8]} 10. Bd3 {[%clk 0:04:47.2]} 10... h6 {[%clk 0:04:43.7]}
11. Ne4 {[%clk 0:04:44.7]} 11... Nxe4 {[%clk 0:04:42.1]} 12. Bxe4 {[%clk
0:04:44.6]} 12... Bg4 {[%clk 0:04:37.5]} 13. Bd3 {[%clk 0:04:38.7]} 13... Qc7
{[%clk 0:04:31]} 14. h3 {[%clk 0:04:36.7]} 14... Bh5 {[%clk 0:04:24.6]} 15. c3
{[%clk 0:04:23.7]} 15... Nf6 {[%clk 0:04:23]} 16. Bc2 {[%clk 0:04:19]} 16... Nd5
{[%clk 0:04:13.1]} 17. Qd2 {[%clk 0:04:12.7]} 17... Nxe3 {[%clk 0:04:05.5]} 18.
fxe3 {[%clk 0:04:12.6]} 18... Bg3 {[%clk 0:04:01.7]} 19. Ne1 {[%clk 0:04:01.7]}
19... Re6 {[%clk 0:03:44.7]} 20. Nd3 {[%clk 0:03:52.7]} 20... Rae8 {[%clk
0:03:21.5]} 21. Nc5 {[%clk 0:03:45.8]} 21... Rxe3 {[%clk 0:03:16.1]} 22. Nb3
{[%clk 0:03:40.3]} 22... Re2 {[%clk 0:02:59.8]} 23. Qd3 {[%clk 0:03:36.7]} 23...
R8e3 {[%clk 0:02:55.1]} 24. Qh7+ {[%clk 0:03:35.2]} 24... Kf8 {[%clk 0:02:49.1]}
25. Bg6 {[%clk 0:03:29.8]} 25... Rxg2+ {[%clk 0:02:35.1]} 26. Kxg2 {[%clk
0:03:27.2]} 26... Re2+ {[%clk 0:02:32.8]} 27. Kg1 {[%clk 0:03:19.9]} 27... Bf2+
{[%clk 0:01:51.6]} 28. Rxf2 {[%clk 0:03:12.2]} 28... Qg3+ {[%clk 0:01:49.1]} 29.
Kh1 {[%clk 0:03:07.7]} 29... Qxh3+ {[%clk 0:01:36.3]} 30. Kg1 {[%clk 0:03:06.8]}
30... Qg3+ {[%clk 0:01:32.7]} 31. Kh1 {[%clk 0:03:05.9]} 31... Bf3+ {[%clk
0:01:27.3]} 0-1

[Event "Live Chess"]
[Site "Chess.com"]
[Date "2023.05.20"]
[Round "-"]
[White "jennybobby44"]
[Black "f4nomore"]
[Result "1-0"]
[WhiteElo "1847"]
[BlackElo "1425"]
[TimeControl "300"]
[EndTime "15:50:04 PDT"]
[Termination "jennybobby44 won by resignation"]

1. Nf3 {[%clk 0:04:59]} 1... g6 {[%clk 0:04:59.9]} 2. d4 {[%clk 0:04:57.8]} 2...
Bg7 {[%clk 0:04:59.8]} 3. g3 {[%clk 0:04:57.2]} 3... d6 {[%clk 0:04:58.6]} 4.
Bg2 {[%clk 0:04:56.8]} 4... Nf6 {[%clk 0:04:57.1]} 5. O-O {[%clk 0:04:56.4]}
5... O-O {[%clk 0:04:55.2]} 6. c4 {[%clk 0:04:55.4]} 6... Nbd7 {[%clk
0:04:53.2]} 7. b3 {[%clk 0:04:54.5]} 7... a6 {[%clk 0:04:51.1]} 8. Bb2 {[%clk
0:04:53.6]} 8... c5 {[%clk 0:04:48.3]} 9. d5 {[%clk 0:04:50.6]} 9... b5 {[%clk
0:04:45.5]} 10. Nbd2 {[%clk 0:04:46.4]} 10... bxc4 {[%clk 0:04:39.3]} 11. Nxc4
{[%clk 0:04:32.6]} 11... Rb8 {[%clk 0:04:31.8]} 12. Nfd2 {[%clk 0:04:30.1]}
12... a5 {[%clk 0:04:26.7]} 13. e4 {[%clk 0:04:26.1]} 13... a4 {[%clk
0:04:22.7]} 14. f4 {[%clk 0:04:18]} 14... axb3 {[%clk 0:04:19.1]} 15. axb3
{[%clk 0:04:16.8]} 15... Nb6 {[%clk 0:04:12]} 16. Qc2 {[%clk 0:04:11.1]} 16...
Bb7 {[%clk 0:04:06.2]} 17. h3 {[%clk 0:04:04.4]} 17... Ra8 {[%clk 0:04:01.7]}
18. Kh2 {[%clk 0:04:02.8]} 18... Rxa1 {[%clk 0:03:57.7]} 19. Rxa1 {[%clk
0:04:01]} 19... Qc7 {[%clk 0:03:52.6]} 20. Nxb6 {[%clk 0:03:50.9]} 20... Qxb6
{[%clk 0:03:49.5]} 21. Nc4 {[%clk 0:03:50.1]} 21... Qc7 {[%clk 0:03:45.5]} 22.
Rd1 {[%clk 0:03:41.3]} 22... Ra8 {[%clk 0:03:38]} 23. e5 {[%clk 0:03:27]} 23...
dxe5 {[%clk 0:03:32.9]} 24. fxe5 {[%clk 0:03:25.9]} 24... Nh5 {[%clk 0:03:15.5]}
25. d6 {[%clk 0:03:19.3]} 25... exd6 {[%clk 0:03:14]} 26. exd6 {[%clk
0:03:17.5]} 26... Qd7 {[%clk 0:03:06.1]} 27. Bxg7 {[%clk 0:03:13.3]} 27... Nxg7
{[%clk 0:03:01.4]} 28. Nb6 {[%clk 0:03:12.1]} 28... Qb5 {[%clk 0:02:43]} 29.
Nxa8 {[%clk 0:03:07.8]} 29... Bxg2 {[%clk 0:02:37.8]} 30. Qxg2 {[%clk
0:03:06.3]} 30... Qxb3 {[%clk 0:02:33]} 31. d7 {[%clk 0:03:00.4]} 31... Ne6
{[%clk 0:02:30.6]} 32. Nc7 {[%clk 0:02:58.8]} 32... Nd8 {[%clk 0:02:22.3]} 33.
Re1 {[%clk 0:02:52.2]} 33... Kg7 {[%clk 0:02:18.5]} 34. Re8 {[%clk 0:02:48]}
34... Qb6 {[%clk 0:02:08.4]} 35. Nd5 {[%clk 0:02:18.2]} 35... Qa5 {[%clk
0:01:42.3]} 36. Qb2+ {[%clk 0:01:57.3]} 36... Kh6 {[%clk 0:01:34]} 37. Re2
{[%clk 0:01:48.5]} 37... Qa8 {[%clk 0:01:19.7]} 38. Qd2+ {[%clk 0:01:42.2]}
38... g5 {[%clk 0:01:08.7]} 39. h4 {[%clk 0:01:36]} 39... f6 {[%clk 0:00:53.8]}
40. Nxf6 {[%clk 0:01:32.2]} 40... Nf7 {[%clk 0:00:45.3]} 41. hxg5+ {[%clk
0:01:19.2]} 41... Nxg5 {[%clk 0:00:33.6]} 42. d8=Q {[%clk 0:01:08.8]} 42... Qxd8
{[%clk 0:00:22]} 43. Qxd8 {[%clk 0:01:07.4]} 43... Nf3+ {[%clk 0:00:20.5]} 44.
Kg2 {[%clk 0:01:05.5]} 44... Nd4 {[%clk 0:00:09.3]} 45. Ng8+ {[%clk 0:01:02.1]}
1-0